bitfinex/quotes_BTCUSD_20260110
["timestamp","ask_amount","ask_price","bid_price","bid_amount"]
[1768041772201,0.04875265,90815.0,90805.0,0.0330526]
[1768041773051,0.04875265,90815.0,90805.0,0.02204]
[1768041774233,0.04875265,90815.0,90805.0,0.0330526]
[1768041774430,0.04875265,90815.0,90805.0,0.02204]
[1768041774655,0.04875265,90815.0,90805.0,0.0330526]
[1768041774856,0.04875265,90815.0,90805.0,0.02204]
[1768041777031,0.26731506,90815.0,90805.0,0.02204]
[1768041777979,0.04875265,90815.0,90805.0,0.02204]
[1768041779696,0.04965013,90814.0,90805.0,0.02204]
[1768041783291,0.000999,90805.0,90797.0,0.05665029]
[1768041783510,0.21856241,90810.0,90803.0,0.02204]
[1768041783708,0.27636504,90813.0,90803.0,0.02204]
[1768041784147,0.046791,90812.0,90803.0,0.02204]
[1768041784356,0.05780276,90812.0,90803.0,0.02204]
[1768041784681,0.046791,90812.0,90803.0,0.02204]
[1768041787012,0.05780276,90812.0,90803.0,0.02204]
[1768041787256,0.046791,90812.0,90803.0,0.02204]
[1768041787427,0.046791,90812.0,90797.0,0.04563672]
[1768041787656,0.27636541,90810.0,90797.0,0.02204]
[1768041788061,0.046791,90809.0,90797.0,0.02204]
[1768041789999,0.046791,90809.0,90797.0,0.03305357]
[1768041790302,0.04578878,90809.0,90797.0,0.03305357]
[1768041790463,0.04578878,90809.0,90798.0,0.01101345]
[1768041791482,0.04578878,90809.0,90797.0,0.03305357]
[1768041792111,0.04578878,90809.0,90798.0,0.01101345]
[1768041792930,0.04578878,90809.0,90799.0,0.01101333]
[1768041793133,0.04578878,90809.0,90798.0,0.01101345]
[1768041796235,0.04578878,90809.0,90797.0,0.03305357]
[1768041797619,0.04578878,90809.0,90797.0,0.02204]
[1768041798069,0.0568009,90809.0,90797.0,0.02204]
[1768041798870,0.04578878,90809.0,90797.0,0.02204]
[1768041800455,0.04578878,90809.0,90797.0,0.03305357]
[1768041800660,0.04578878,90809.0,90798.0,0.01101345]
[1768041802713,0.04578878,90809.0,90799.0,0.01101333]
[1768041803254,0.04578878,90809.0,90798.0,0.01101345]
[1768041803587,0.04578878,90809.0,90797.0,0.03305357]
[1768041803783,0.04511848,90809.0,90798.0,0.01101345]
[1768041803993,0.04511848,90809.0,90797.0,0.03305357]
[1768041804594,0.04511848,90809.0,90797.0,0.02204]
[1768041806744,0.01101224,90808.0,90797.0,0.02204]
[1768041807320,0.0561306,90809.0,90797.0,0.02204]
[1768041808129,0.01101224,90808.0,90797.0,0.02204]
[1768041808734,0.0561306,90809.0,90797.0,0.02204]
[1768041810461,0.01101224,90808.0,90797.0,0.02204]
[1768041810698,0.0561306,90809.0,90797.0,0.02204]
[1768041811407,0.01101224,90808.0,90797.0,0.02204]
[1768041812690,0.01101212,90809.0,90797.0,0.02204]
[1768041813107,0.01101224,90808.0,90797.0,0.02204]
[1768041813321,0.01101212,90809.0,90797.0,0.02204]
[1768041814707,0.01101224,90808.0,90797.0,0.02204]
[1768041815356,0.01101212,90809.0,90797.0,0.02204]
[1768041815515,0.22957441,90810.0,90797.0,0.02204]
[1768041816118,0.01101212,90809.0,90797.0,0.02204]
[1768041817226,0.01101224,90808.0,90797.0,0.02204]
[1768041817408,0.01101212,90809.0,90797.0,0.02204]
[1768041819447,0.05950328,90806.0,90789.0,0.01101455]
[1768041819685,0.000999,90797.0,90790.0,0.02204]
[1768041820077,0.21856241,90800.0,90790.0,0.02204]
[1768041820276,0.26705321,90800.0,90790.0,0.02204]
[1768041822191,0.26705321,90800.0,90790.0,0.03305442]
[1768041822422,0.26705321,90800.0,90791.0,0.0110143]
[1768041822669,0.26705321,90800.0,90790.0,0.03305442]
[1768041823433,0.26705321,90800.0,90790.0,0.02204]
[1768041830405,0.0484908,90800.0,90790.0,0.02204]
[1768041830615,0.01101285,90803.0,90790.0,0.02204]
[1768041831180,0.01101309,90801.0,90790.0,0.02204]
[1768041831623,0.01101297,90802.0,90790.0,0.02204]
[1768041833079,0.01101309,90801.0,90790.0,0.02204]
[1768041833277,0.01101297,90802.0,90790.0,0.02204]
[1768041835794,0.05870737,90803.0,90790.0,0.02204]
[1768041837422,0.01101297,90802.0,90790.0,0.02204]
[1768041839398,0.05870737,90803.0,90790.0,0.02204]
[1768041840420,0.01101297,90802.0,90790.0,0.02204]
[1768041840978,0.05870737,90803.0,90790.0,0.02204]
[1768041842262,0.01101321,90800.0,90790.0,0.02204]
[1768041842410,0.01101309,90801.0,90790.0,0.02204]
[1768041842846,0.01101321,90800.0,90790.0,0.02204]
[1768041843997,0.01101309,90801.0,90790.0,0.02204]
[1768041844128,0.05750783,90800.0,90790.0,0.02204]
[1768041844335,0.04649462,90800.0,90790.0,0.02204]
[1768041845670,0.05750783,90800.0,90790.0,0.02204]
[1768041847180,0.04649462,90800.0,90790.0,0.02204]
[1768041849893,0.05750783,90800.0,90790.0,0.02204]
[1768041850224,0.04649462,90800.0,90790.0,0.02204]
[1768041857180,0.01101273,90804.0,90790.0,0.02204]
[1768041857610,0.01101273,90804.0,90790.0,0.03305442]
[1768041857810,0.05750735,90804.0,90790.0,0.03305442]
[1768041860775,0.04649462,90804.0,90791.0,0.0110143]
[1768041861069,0.05750735,90804.0,90790.0,0.03305442]
[1768041862377,0.01101285,90803.0,90790.0,0.02204]
[1768041862975,0.05750735,90804.0,90790.0,0.02204]
[1768041863604,0.01101297,90802.0,90790.0,0.02204]
[1768041864011,0.01101309,90801.0,90790.0,0.02204]
[1768041864470,0.01101321,90800.0,90790.0,0.02204]
[1768041864709,0.01101309,90801.0,90790.0,0.02204]
[1768041865129,0.01101297,90802.0,90790.0,0.02204]
[1768041865815,0.05750747,90803.0,90790.0,0.02204]
[1768041866873,0.05750771,90801.0,90790.0,0.02204]
[1768041867711,0.01101321,90800.0,90790.0,0.02204]
[1768041867900,0.05750771,90801.0,90790.0,0.02204]
[1768041868286,0.05735729,90801.0,90790.0,0.02204]
[1768041868799,0.04649462,90801.0,90790.0,0.02204]
[1768041869204,0.05750771,90801.0,90790.0,0.02204]
[1768041869540,0.04649462,90801.0,90790.0,0.02204]
[1768041873630,0.05750771,90801.0,90790.0,0.02204]
[1768041875170,0.04649462,90801.0,90790.0,0.02204]
[1768041875386,0.0463442,90801.0,90790.0,0.02204]
[1768041879696,0.01101297,90802.0,90790.0,0.07002177]
[1768041879892,0.01101285,90803.0,90791.0,0.04798177]
[1768041883419,0.06607742,90803.0,90791.0,0.04798177]
[1768041884160,0.01101297,90802.0,90791.0,0.04798177]
[1768041884720,0.01101285,90803.0,90791.0,0.04798177]
[1768041885628,0.01101297,90802.0,90791.0,0.04798177]
[1768041885769,0.01101285,90803.0,90791.0,0.04798177]
[1768041886195,0.01101297,90802.0,90791.0,0.04798177]
[1768041886736,0.01101321,90800.0,90791.0,0.04798177]
[1768041887483,0.01101309,90801.0,90791.0,0.04798177]
[1768041888707,0.05904738,90801.0,90790.0,0.02204]
[1768041889257,0.01101321,90800.0,90790.0,0.02204]
[1768041889486,0.05904738,90801.0,90790.0,0.02204]
[1768041893071,0.05904738,90801.0,90781.0,0.01101552]
[1768041893072,0.04549412,90796.0,90777.0,0.011016]
[1768041893290,0.04549412,90796.0,90776.0,0.01101612]
[1768041893291,0.04549412,90789.0,90776.0,0.01101612]
[1768041893458,0.05650903,90786.0,90779.0,0.00039]
[1768041893602,0.04549412,90784.0,90779.0,0.00039]
[1768041894654,0.04549412,90784.0,90775.0,0.0001507]
[1768041894655,0.04549412,90784.0,90775.0,0.01116694]
[1768041894877,0.04549412,90784.0,90776.0,0.01101612]
[1768041895079,0.04549412,90789.0,90776.0,0.01013973]
[1768041895280,0.04549412,90789.0,90777.0,0.011016]
[1768041895949,0.04549412,90789.0,90778.0,0.01101588]
[1768041896912,0.04549412,90789.0,90775.0,0.01116694]
[1768041897110,0.04549412,90789.0,90776.0,0.01101612]
[1768041897512,0.04549412,90789.0,90777.0,0.011016]
[1768041898564,0.02204,90788.0,90777.0,0.011016]
[1768041898752,0.04549412,90787.0,90777.0,0.011016]
[1768041899129,0.04549412,90787.0,90778.0,0.01101588]
[1768041899836,0.04549412,90787.0,90776.0,0.01101612]
[1768041900148,0.21872771,90786.0,90776.0,0.01101612]
[1768041900352,0.21872771,90786.0,90778.0,0.01101588]
[1768041900668,0.02204,90788.0,90778.0,0.01101588]
[1768041900892,0.02204,90788.0,90779.0,0.01101576]
[1768041903122,0.02204,90788.0,90780.0,0.01101564]
[1768041903354,0.21872771,90790.0,90780.0,0.01101564]
[1768041903532,0.24076771,90790.0,90783.0,0.01101527]
[1768041903733,0.02204,90790.0,90784.0,0.01101515]
[1768041903939,0.02204,90790.0,90783.0,0.01101527]
[1768041904268,0.02204,90790.0,90782.0,0.01101539]
[1768041904619,0.02204,90790.0,90781.0,0.01101552]
[1768041905020,0.02204,90790.0,90777.0,0.10019427]
[1768041905224,0.02204,90790.0,90779.0,0.01101576]
[1768041905564,0.24076771,90790.0,90780.0,0.01101564]
[1768041906598,0.25178213,90790.0,90777.0,0.04511441]
[1768041906974,0.01101455,90789.0,90777.0,0.04511441]
[1768041907574,0.25178213,90790.0,90777.0,0.04511441]
[1768041908295,0.01101467,90788.0,90777.0,0.04511441]
[1768041909443,0.25178213,90790.0,90777.0,0.04511441]
[1768041909848,0.24076771,90790.0,90777.0,0.04511441]
[1768041910666,0.24076771,90790.0,90777.0,0.05613041]
[1768041911873,0.24076771,90790.0,90778.0,0.01101588]
[1768041912053,0.24076771,90790.0,90777.0,0.05613041]
[1768041912258,0.24076771,90790.0,90779.0,0.04511441]
[1768041913484,0.24076771,90790.0,90778.0,0.01101588]
[1768041913715,0.24076771,90790.0,90782.0,0.01101539]
[1768041913933,0.24076771,90790.0,90781.0,0.01101552]
[1768041914382,0.24076771,90790.0,90782.0,0.01101539]
[1768041914800,0.24076771,90790.0,90781.0,0.01101552]
[1768041915744,0.24076771,90790.0,90782.0,0.01101539]
[1768041915920,0.24076771,90790.0,90781.0,0.01101552]
[1768041916456,0.24076771,90790.0,90782.0,0.01101539]
[1768041916700,0.24076771,90790.0,90781.0,0.01101552]
[1768041918346,0.02204,90790.0,90781.0,0.05612993]
[1768041918468,0.02204,90790.0,90783.0,0.01101527]
[1768041918677,0.02204,90790.0,90781.0,0.05612993]
[1768041919301,0.02204,90790.0,90781.0,0.05606168]
[1768041920242,0.02204,90790.0,90782.0,0.01101539]
[1768041921965,0.02204,90790.0,90781.0,0.01094727]
[1768041922140,0.02204,90790.0,90782.0,0.01101539]
[1768041922345,0.02204,90790.0,90783.0,0.01101527]
[1768041922550,0.02204,90790.0,90782.0,0.01101539]
[1768041922957,0.02204,90790.0,90781.0,0.01094727]
[1768041923635,0.02204,90790.0,90782.0,0.01101539]
[1768041925418,0.02204,90790.0,90783.0,0.01101527]
[1768041925634,0.00976063,90799.0,90782.0,0.04511441]
[1768041925768,0.04775692,90801.0,90782.0,0.04511441]
[1768041925769,0.21872771,90800.0,90793.0,0.01101406]
[1768041926001,0.02204,90800.0,90795.0,0.01101382]
[1768041926203,0.02204,90800.0,90795.0,0.01059868]
[1768041927189,0.02204,90800.0,90795.0,0.01101382]
[1768041927872,0.02204,90800.0,90794.0,0.01094569]
[1768041928071,0.02204,90800.0,90791.0,0.06608581]
[1768041928286,0.02204,90800.0,90793.0,0.01101406]
[1768041928636,0.21872771,90803.0,90793.0,0.01101406]
[1768041928637,0.02204,90801.0,90796.0,0.0110137]
[1768041929253,0.02204,90801.0,90795.0,0.01101382]
[1768041929698,0.02204,90801.0,90796.0,0.0110137]
[1768041931192,0.02204,90801.0,90797.0,0.01101357]
[1768041932103,0.02204,90801.0,90798.0,0.06608056]
[1768041932330,0.02204,90801.0,90799.0,0.05506663]
[1768041933039,0.04775692,90805.0,90802.0,0.01101297]
[1768041933213,0.02204,90803.0,90802.0,0.01101297]
[1768041933413,0.02204,90803.0,90799.0,0.0660798]
[1768041933638,0.02204,90803.0,90800.0,0.01101321]
[1768041936834,0.0715765,90803.0,90800.0,0.01101321]
[1768041938659,0.0495365,90803.0,90800.0,0.01101321]
[1768041939849,0.0495365,90803.0,90800.0,0.01094497]
[1768041940863,0.0495365,90803.0,90798.0,0.01101345]
[1768041941074,0.0495365,90803.0,90797.0,0.01101357]
[1768041942120,0.0495365,90803.0,90798.0,0.01101345]
[1768041942440,0.02204,90805.0,90798.0,0.01101345]
[1768041943211,0.02204,90805.0,90797.0,0.01101357]
[1768041943632,0.02204,90805.0,90798.0,0.01101345]
[1768041943846,0.02204,90805.0,90797.0,0.01101357]
[1768041944060,0.02204,90805.0,90795.0,0.01101382]
[1768041945087,0.02204,90805.0,90796.0,0.0110137]
[1768041945839,0.02204,90805.0,90797.0,0.01101357]
[1768041946172,0.02204,90805.0,90798.0,0.01101345]
[1768041946593,0.02204,90805.0,90797.0,0.01101357]
[1768041947844,0.02204,90805.0,90798.0,0.01101345]
[1768041949563,0.02204,90805.0,90798.0,0.05819658]
[1768041949739,0.02204,90805.0,90798.0,0.04718313]
[1768041951595,0.02204,90806.0,90798.0,0.04718313]
[1768041953018,0.0001507,90807.0,90798.0,0.04718313]
[1768041953254,0.02204,90806.0,90798.0,0.04718313]
[1768041954742,0.02204,90806.0,90798.0,0.05819658]
[1768041954978,0.02204,90806.0,90798.0,0.04718313]
[1768041955163,0.02204,90806.0,90798.0,0.05819658]
[1768041955359,0.02204,90806.0,90798.0,0.04718313]
[1768041956099,0.02204,90806.0,90798.0,0.05819658]
[1768041957549,0.02204,90806.0,90798.0,0.04718313]
[1768041958204,0.02204,90806.0,90798.0,0.05819658]
[1768041958382,0.02204,90806.0,90798.0,0.04718313]
[1768041959656,0.02204,90806.0,90797.0,0.01101357]
[1768041959874,0.02204,90806.0,90795.0,0.06608274]
[1768041960078,0.02204,90806.0,90797.0,0.01101357]
[1768041960612,0.02204,90806.0,90795.0,0.01101382]
[1768041960818,0.02204,90806.0,90797.0,0.01101357]
[1768041961880,0.02204,90805.0,90801.0,0.05694577]
[1768041962101,0.0001507,90807.0,90805.0,0.04593268]
[1768041962300,0.0001507,90807.0,90805.0,0.04551755]
[1768041962946,0.0001507,90807.0,90800.0,0.05694589]
[1768041963126,0.0001507,90807.0,90801.0,0.01101309]
[1768041963524,0.0001507,90807.0,90800.0,0.05694589]
[1768041963792,0.0001507,90807.0,90801.0,0.01101309]
[1768041963972,0.0001507,90807.0,90800.0,0.04593268]
[1768041964358,0.0001507,90807.0,90800.0,0.05694589]
[1768041964920,0.0001507,90807.0,90802.0,0.01101297]
[1768041965447,0.0001507,90807.0,90796.0,0.02204]
[1768041965448,0.0001507,90816.0,90809.0,0.01101212]
[1768041965776,0.0001507,90816.0,90811.0,0.01092195]
[1768041966128,0.0001507,90816.0,90811.0,0.01101188]
[1768041966340,0.0001507,90816.0,90810.0,0.011012]
[1768041966620,0.0001507,90816.0,90809.0,0.01101212]
[1768041967018,0.0001507,90816.0,90810.0,0.011012]
[1768041967636,0.0001507,90816.0,90811.0,0.01101188]
[1768041967980,0.0001507,90816.0,90812.0,0.01101176]
[1768041968404,0.0001507,90816.0,90813.0,0.01101163]
[1768041968582,0.0001507,90816.0,90812.0,0.01101176]
[1768041968795,0.0001507,90816.0,90813.0,0.01101163]
[1768041969758,0.0001507,90816.0,90814.0,0.04906728]
[1768041969992,0.0001507,90816.0,90815.0,0.04906728]
[1768041970222,0.0001507,90816.0,90813.0,0.06007891]
[1768041972320,0.0001507,90816.0,90813.0,0.04906728]
[1768041973205,0.0001507,90816.0,90810.0,0.011012]
[1768041973716,0.0001507,90816.0,90809.0,0.01101212]
[1768041974117,0.0001507,90816.0,90810.0,0.011012]
[1768041974545,0.0001507,90816.0,90808.0,0.06007952]
[1768041975158,0.01116197,90816.0,90808.0,0.04906728]
[1768041975334,0.0001507,90816.0,90808.0,0.04906728]
[1768041975704,0.0001507,90816.0,90808.0,0.04897735]
[1768041978562,0.01116197,90816.0,90808.0,0.04897735]
[1768041978765,0.0001507,90816.0,90808.0,0.04897735]
[1768041980913,0.0001507,90816.0,90804.0,0.02204]
[1768041981042,0.0001507,90816.0,90804.0,0.03305273]
[1768041981907,0.0001507,90816.0,90805.0,0.0110126]
[1768041982109,0.0001507,90816.0,90804.0,0.02204]
[1768041982549,0.0001507,90816.0,90804.0,0.03305273]
[1768041983309,0.0001507,90816.0,90805.0,0.0110126]
[1768041983718,0.0001507,90816.0,90804.0,0.03305273]
[1768041984922,0.0001507,90816.0,90804.0,0.02204]
[1768041985331,0.01116197,90816.0,90804.0,0.02204]
[1768041986011,0.0001507,90816.0,90804.0,0.02204]
[1768041987144,0.01116197,90816.0,90804.0,0.02204]
[1768041988064,0.0001507,90816.0,90804.0,0.02204]
[1768041989189,0.0001507,90816.0,90804.0,0.03305273]
[1768041990560,0.0001507,90816.0,90805.0,0.0110126]
[1768041992577,0.0001507,90816.0,90804.0,0.03305273]
[1768041992926,0.0001507,90816.0,90805.0,0.0110126]
[1768041993442,0.0001507,90816.0,90804.0,0.03305273]
[1768041993643,0.0001507,90816.0,90805.0,0.0110126]
[1768041994306,0.0001507,90816.0,90804.0,0.02204]
[1768041994909,0.0001507,90816.0,90804.0,0.03305273]
[1768041995113,0.0001507,90816.0,90804.0,0.02204]
[1768041995513,0.01116197,90816.0,90804.0,0.02204]
[1768041995715,0.0001507,90816.0,90804.0,0.02204]
[1768041995918,0.0001507,90816.0,90804.0,0.03305273]
[1768041996236,0.0001507,90816.0,90805.0,0.0110126]
[1768041996435,0.0001507,90816.0,90804.0,0.03305273]
[1768041996744,0.0001507,90816.0,90805.0,0.0110126]
[1768041997974,0.0001507,90816.0,90804.0,0.03305273]
[1768041998111,0.0001507,90816.0,90805.0,0.0110126]
[1768041998313,0.0001507,90816.0,90804.0,0.03305273]
[1768041999105,0.0001507,90816.0,90805.0,0.0110126]
[1768042000702,0.0001507,90816.0,90806.0,0.01101248]
[1768042001005,0.0001507,90816.0,90805.0,0.0110126]
[1768042001351,0.01116197,90816.0,90804.0,0.02204]
[1768042001886,0.01101139,90815.0,90804.0,0.02204]
[1768042002128,0.0001507,90816.0,90804.0,0.02204]
[1768042002842,0.01101139,90815.0,90804.0,0.02204]
[1768042003051,0.01116197,90816.0,90804.0,0.02204]
[1768042003480,0.01101139,90815.0,90804.0,0.02204]
[1768042004510,0.01116197,90816.0,90804.0,0.02204]
[1768042004715,0.0001507,90816.0,90804.0,0.02204]
[1768042005564,0.01116197,90816.0,90804.0,0.02204]
[1768042006074,0.0001507,90816.0,90804.0,0.02204]
[1768042006483,0.01116197,90816.0,90804.0,0.02204]
[1768042006628,0.0001507,90816.0,90804.0,0.02204]
[1768042007991,0.0001507,90816.0,90804.0,0.03305273]
[1768042008814,0.0001507,90816.0,90805.0,0.0110126]
[1768042010152,0.0001507,90816.0,90804.0,0.02204]
[1768042010357,0.0001507,90816.0,90804.0,0.03305273]
[1768042012500,0.0001507,90816.0,90805.0,0.0110126]
[1768042014271,0.0001507,90816.0,90806.0,0.01101248]
[1768042016822,0.0001507,90816.0,90805.0,0.06607557]
[1768042016823,0.0001507,90816.0,90805.0,0.04513633]
[1768042016973,0.0001507,90816.0,90812.0,0.01101176]
[1768042017177,0.0001507,90816.0,90811.0,0.01101188]
[1768042017342,0.0001507,90816.0,90810.0,0.011012]
[1768042017536,0.0001507,90816.0,90811.0,0.01101188]
[1768042017941,0.0001507,90816.0,90810.0,0.011012]
[1768042018367,0.04806402,90816.0,90811.0,0.01101188]
[1768042018651,0.21856059,90821.0,90811.0,0.01101188]
[1768042018652,0.0001507,90825.0,90816.0,0.01101127]
[1768042018884,0.0001507,90825.0,90812.0,0.03305176]
[1768042019085,0.0001507,90825.0,90814.0,0.01101151]
[1768042019288,0.04791332,90824.0,90815.0,0.01101139]
[1768042019517,0.04791332,90824.0,90812.0,0.03305176]
[1768042019684,0.04791332,90824.0,90814.0,0.01101151]
[1768042019898,0.04811332,90822.0,90812.0,0.03305176]
[1768042020299,0.04811332,90822.0,90806.0,0.06607439]
[1768042020474,0.04891232,90812.0,90809.0,0.01101212]
[1768042020698,0.04791332,90812.0,90809.0,0.01101212]
[1768042021104,0.04791332,90821.0,90810.0,0.011012]
[1768042021847,0.04791332,90821.0,90811.0,0.01101188]
[1768042021985,0.04791332,90821.0,90810.0,0.011012]
[1768042022187,0.04791332,90821.0,90811.0,0.01101188]
[1768042022384,0.04791332,90821.0,90807.0,0.03305236]
[1768042022746,0.04791332,90819.0,90807.0,0.03305236]
[1768042022888,0.04791332,90819.0,90808.0,0.01101224]
[1768042023699,0.22977113,90822.0,90808.0,0.01101224]
[1768042023700,0.22977113,90822.0,90808.0,0.01092231]
[1768042024189,0.0002,90822.0,90807.0,0.03305236]
[1768042024377,0.0002,90822.0,90809.0,0.01101212]
[1768042024587,0.0002,90822.0,90810.0,0.011012]
[1768042024948,0.21856059,90820.0,90810.0,0.011012]
[1768042025564,0.21856059,90820.0,90811.0,0.01101188]
[1768042025756,0.0002,90822.0,90810.0,0.011012]
[1768042026151,0.0002,90822.0,90811.0,0.01101188]
[1768042026337,0.0002,90822.0,90812.0,0.01101176]
[1768042027351,0.0002,90822.0,90813.0,0.01101163]
[1768042027572,0.0002,90822.0,90811.0,0.01101188]
[1768042027947,0.0002,90822.0,90812.0,0.01101176]
[1768042028358,0.0002,90822.0,90814.0,0.01101151]
[1768042028787,0.0002,90822.0,90815.0,0.01101139]
[1768042028982,0.0002,90822.0,90814.0,0.01101151]
[1768042029329,0.0002,90822.0,90813.0,0.01101163]
[1768042030057,0.0002,90822.0,90815.0,0.01101139]
[1768042030923,0.0002,90822.0,90814.0,0.01101151]
[1768042031954,0.0002,90822.0,90815.0,0.01101139]
[1768042033887,0.0002,90822.0,90814.0,0.01101151]
[1768042034369,0.0002,90822.0,90815.0,0.01101139]
[1768042034989,0.00010951,90822.0,90815.0,0.01101139]
[1768042035895,0.00010951,90822.0,90816.0,0.01092132]
[1768042036109,0.00010951,90822.0,90818.0,0.01101103]
[1768042036405,0.00010951,90822.0,90819.0,0.01101091]
[1768042036602,0.00010951,90822.0,90818.0,0.01101103]
[1768042037772,0.00010951,90822.0,90819.0,0.04505524]
[1768042043412,0.00010951,90822.0,90819.0,0.05606615]
[1768042043667,0.00010951,90822.0,90819.0,0.04505524]
[1768042044819,0.00010951,90822.0,90821.0,0.04505524]
[1768042045067,0.00010951,90822.0,90821.0,0.06709524]
[1768042046907,0.00010951,90822.0,90821.0,0.06609624]
[1768042049738,0.00010951,90822.0,90821.0,0.02204]
[1768042050765,0.00010951,90822.0,90821.0,0.00625679]
[1768042055800,0.00010951,90822.0,90821.0,0.00396323]
[1768042055945,0.01112005,90822.0,90804.0,0.01101273]
[1768042056149,0.21856059,90820.0,90806.0,0.04659625]
[1768042056602,0.01101066,90821.0,90806.0,0.04659625]
[1768042056950,0.01101066,90821.0,90807.0,0.05760861]
[1768042057147,0.01118583,90822.0,90808.0,0.01101224]
[1768042057363,0.01101066,90821.0,90807.0,0.05760861]
[1768042057565,0.01118583,90822.0,90808.0,0.01101224]
[1768042057766,0.01118583,90822.0,90809.0,0.01101212]
[1768042057966,0.01118583,90822.0,90808.0,0.01101224]
[1768042058220,0.01101079,90820.0,90807.0,0.05760861]
[1768042058431,0.0498424,90819.0,90807.0,0.01101236]
[1768042059229,0.0498424,90819.0,90808.0,0.01101224]
[1768042059429,0.0498424,90819.0,90805.0,0.0330526]
[1768042059584,0.0498424,90819.0,90806.0,0.01101248]
[1768042060018,0.0498424,90819.0,90805.0,0.0330526]
[1768042060216,0.0498424,90819.0,90806.0,0.01101248]
[1768042060412,0.0498424,90819.0,90807.0,0.01101236]
[1768042061047,0.0498424,90819.0,90806.0,0.01101248]
[1768042061758,0.0498424,90819.0,90807.0,0.01101236]
[1768042062614,0.0498424,90819.0,90808.0,0.01101224]
[1768042063650,0.0498424,90819.0,90807.0,0.01101236]
[1768042064427,0.0498424,90819.0,90805.0,0.0330526]
[1768042064652,0.0498424,90819.0,90806.0,0.01101248]
[1768042065189,0.0498424,90819.0,90807.0,0.01101236]
[1768042065338,0.0498424,90819.0,90808.0,0.01101224]
[1768042066054,0.0498424,90819.0,90809.0,0.01101212]
[1768042066683,0.0498424,90819.0,90810.0,0.011012]
[1768042066840,0.0498424,90819.0,90809.0,0.01101212]
[1768042067886,0.0498424,90819.0,90808.0,0.01101224]
[1768042068092,0.0498424,90819.0,90810.0,0.011012]
[1768042068320,0.0488434,90819.0,90811.0,0.01101188]
[1768042068499,0.00017529,90822.0,90811.0,0.01101188]
[1768042070107,0.00017529,90822.0,90812.0,0.01101176]
[1768042070307,0.00017529,90822.0,90815.0,0.01101139]
[1768042071166,0.00017529,90822.0,90816.0,0.01101127]
[1768042071536,0.00017529,90822.0,90815.0,0.01101139]
[1768042074207,0.00017529,90822.0,90813.0,0.02204]
[1768042074745,0.00017529,90822.0,90814.0,0.01101151]
[1768042074959,0.00017529,90822.0,90813.0,0.03305163]
[1768042075346,0.00017529,90822.0,90814.0,0.01101151]
[1768042075527,0.00017529,90822.0,90815.0,0.01101139]
[1768042075732,0.00017529,90822.0,90813.0,0.03305163]
[1768042075936,0.00017529,90822.0,90814.0,0.01101151]
[1768042076154,0.00017529,90822.0,90813.0,0.03305163]
[1768042077144,0.00017529,90822.0,90814.0,0.01101151]
[1768042080113,0.04742202,90822.0,90813.0,0.02204]
[1768042080310,0.04742202,90822.0,90813.0,0.08810925]
[1768042080536,0.04742202,90822.0,90813.0,0.03305163]
[1768042080947,0.04742202,90822.0,90815.0,0.01101139]
[1768042081152,0.04742202,90822.0,90813.0,0.03305163]
[1768042082224,0.04742202,90822.0,90813.0,0.02204]
[1768042082554,0.04742202,90822.0,90813.0,0.03305163]
[1768042083760,0.04742202,90822.0,90813.0,0.02204]
[1768042083974,0.04742202,90822.0,90813.0,0.03305163]
[1768042084431,0.00017529,90822.0,90813.0,0.02204]
[1768042084812,0.00017529,90822.0,90813.0,0.021041]
[1768042085589,0.04764433,90821.0,90813.0,0.021041]
[1768042093213,0.04764433,90821.0,90810.0,0.011012]
[1768042093395,0.04764433,90821.0,90809.0,0.02204]
[1768042093833,0.04764433,90821.0,90809.0,0.03305212]
[1768042094666,0.04764433,90821.0,90810.0,0.011012]
[1768042096284,0.04764433,90821.0,90809.0,0.02204]
[1768042097553,0.04764433,90821.0,90809.0,0.03305212]
[1768042098752,0.04764433,90821.0,90809.0,0.02204]
[1768042099069,0.04764433,90821.0,90809.0,0.03305212]
[1768042099270,0.04764433,90821.0,90810.0,0.011012]
[1768042099693,0.04764433,90821.0,90809.0,0.03305212]
[1768042100633,0.04764433,90816.0,90809.0,0.02204]
[1768042100791,0.04764433,90816.0,90809.0,0.02199477]
[1768042118399,0.04764433,90816.0,90810.0,0.011012]
[1768042120363,0.04764433,90816.0,90809.0,0.02199477]
[1768042121134,0.04764433,90816.0,90809.0,0.03300689]
[1768042121719,0.04781663,90816.0,90809.0,0.02199477]
[1768042121923,0.04781663,90816.0,90809.0,0.03300689]
[1768042122640,0.04781663,90816.0,90808.0,0.01101224]
[1768042123336,0.04772614,90816.0,90808.0,0.01101224]
[1768042123721,0.04772614,90816.0,90807.0,0.01101236]
[1768042125663,0.04772614,90816.0,90809.0,0.01101212]
[1768042127083,0.04772614,90816.0,90810.0,0.011012]
[1768042127252,0.02585739,90816.0,90812.0,0.01101176]
[1768042127451,0.04823784,90822.0,90816.0,0.00041158]
[1768042127758,0.04823784,90822.0,90816.0,0.01101127]
[1768042127955,0.04823784,90822.0,90815.0,0.01101139]
[1768042128581,0.04823784,90822.0,90816.0,0.01101127]
[1768042129682,0.04823784,90822.0,90815.0,0.06606831]
[1768042129907,0.04823784,90822.0,90815.0,0.01101139]
[1768042130310,0.04823784,90822.0,90814.0,0.01101151]
[1768042131700,0.04823784,90822.0,90813.0,0.01101163]
[1768042132026,0.04823784,90822.0,90814.0,0.01101151]
[1768042132201,0.04823784,90822.0,90813.0,0.01101163]
[1768042132388,0.04823784,90822.0,90815.0,0.01101139]
[1768042133356,0.04823784,90822.0,90816.0,0.01101127]
[1768042133551,0.04814733,90822.0,90816.0,0.01101127]
[1768042135165,0.04814733,90822.0,90815.0,0.01101139]
[1768042135370,0.04814733,90822.0,90816.0,0.01101127]
[1768042136215,0.04814733,90822.0,90813.0,0.01101163]
[1768042136374,0.04814733,90822.0,90814.0,0.01101151]
[1768042136588,0.04814733,90822.0,90815.0,0.01101139]
[1768042137317,0.04814733,90822.0,90816.0,0.01101127]
[1768042137719,0.04814733,90822.0,90815.0,0.01101139]
[1768042137885,0.04814733,90822.0,90814.0,0.01101151]
[1768042139269,0.04814733,90822.0,90813.0,0.01101163]
[1768042140430,0.04814733,90822.0,90814.0,0.01101151]
[1768042140591,0.04814733,90822.0,90814.0,0.06606898]
[1768042140786,0.02204,90821.0,90812.0,0.01101176]
[1768042140989,0.02204,90821.0,90814.0,0.01101151]
[1768042141199,0.02204,90821.0,90815.0,0.01101139]
[1768042141387,0.02204,90821.0,90816.0,0.01101127]
[1768042141616,0.02204,90821.0,90815.0,0.01101139]
[1768042142016,0.02204,90821.0,90815.0,0.01095005]
[1768042142411,0.02204,90821.0,90814.0,0.01101151]
[1768042143044,0.02204,90821.0,90813.0,0.01101163]
[1768042143198,0.02204,90821.0,90814.0,0.01101151]
[1768042143760,0.02204,90821.0,90814.0,0.06606898]